Cogmind - Beta 17 @@@ ROGUE MODE // 2026.07.31 @ 16:41:28 Player: Afro Result: Destroyed by G-47 Trooper with Particle Gun Performance ------------- Evolutions (0) 0 Regions Visited (1) 200 Robots Destroyed (25) 125 Value Destroyed (571) 571 Prototype IDs (0) 0 Alien Tech Used (0) 0 Bonus (0) 0 TOTAL SCORE: 896 Bonus ------- None Cogmind --------- Core Integrity 0/250 Matter 295/300 Energy 250/250 System Corruption 0% Temperature Cool (9) Movement Walking (400) Ox4 Location -10/Materials Parts ------- > --- POWER (1) -------- Ion Engine > --- PROPULSION (2) --- Aluminum Leg > --- UTILITY (2) ------ High-capacity Storage Unit Signal Interpreter > --- WEAPON (2) ------- Particle Gun Mining Claw > --- INVENTORY (20) --- Ion Engine Aluminum Leg Aluminum Leg Improved Aluminum Leg Improved Aluminum Leg Improved Aluminum Leg Improved Heat Sink Cooling System High-capacity Matter Pod (108) Visual Processing Unit Sensor Array ECM Suite Power Shielding Tractor Beam Datajack Peak State ------------ > --- POWER ------------ Light Nuclear Core > --- PROPULSION ------- Light Treads Light Treads > --- UTILITY ---------- Large Storage Unit Seismic Detector > --- WEAPON ----------- Particle Gun Light Assault Rifle > --- INVENTORY -------- Light Ion Engine Aluminum Leg Improved Aluminum Leg Improved Aluminum Leg Improved Aluminum Leg Heat Sink Cooling System High-capacity Matter Pod Visual Processing Unit Improved Terrain Scanner ECM Suite Power Shielding Light Assault Rifle Mining Claw [Rating: 12] Favorites ----------- Power Light Ion Engine Engine Light Ion Engine Power Core Light Nuclear Core Propulsion Light Treads Treads Light Treads Leg Aluminum Leg Utility Seismic Detector Device Seismic Detector Storage Large Storage Unit Processor Signal Interpreter Weapon Light Assault Rifle Energy Gun Particle Gun Ballistic Gun Light Assault Rifle Slashing Weapon Mining Claw Special Melee Weapon Datajack Build | -11 -10 ------- Run | Yrd Mat Slots Evolved . | . . Power . | . . Propulsion . | . . Utility . | . . Weapon . | . . Parts Attached 24 | 7 17 Power 5 | 1 4 Engine 4 | 1 3 Core 1 | . 1 Reactor . | . . Propulsion 6 | 2 4 Treads 2 | 2 . Leg 4 | . 4 Wheel . | . . Hover . | . . Flight . | . . Utility 5 | 2 3 Device 1 | 1 . Storage 3 | 1 2 Processor 1 | . 1 Hackware . | . . Protection . | . . Artifact . | . . Weapon 8 | 2 6 Energy Gun 1 | . 1 Energy Cannon . | . . Ballistic Gun 5 | 2 3 Ballistic Cannon . | . . Launcher . | . . Special Weapon . | . . Impact Weapon . | . . Slashing Weapon 1 | . 1 Piercing Weapon . | . . Special Melee Weapon 1 | . 1 Unidentified Prototypes . | . . Parts Lost 6 | . 6 Power 2 | . 2 Propulsion 2 | . 2 Utility . | . . Weapon 2 | . 2 Highest Loss Streak 3 | . 3 To Critical Strikes . | . . Average Backups 11 | 5 12 Power 1 | 1 1 Propulsion 3 | 1 3 Utility 4 | . 5 Weapon 1 | . 1 Tool/Special . | . . Unused Backups 24 | . 24 Power 3 | . 3 Propulsion 9 | . 9 Utility 10 | . 10 Weapon 2 | . 2 Tool/Special . | . . Average Slot Usage (%) 99 | . 99 Engine 8 | . 8 Core 5 | . 5 Treads 19 | . 19 Leg 8 | . 8 Device 8 | . 8 Storage 14 | . 14 Processor 5 | . 5 Energy Gun 6 | . 6 Ballistic Gun 19 | . 19 Slashing Weapon 1 | . 1 Peak Build Rating 12 | 8 12 Average Rating 9 | 6 10 On Entrance 4 | . 8 Avg Prop Armor Cover (%) . | . . Naked Turns . | . . Heaviest Build 49 | 11 49 Greatest Support 40 | 40 40 Greatest Overweight (x) 4 | 1 4 Average Overweight (x) . | . . Largest Inventory Capacity 20 | 8 20 Average Capacity 13 | 7 14 Most Carried 16 | 8 16 Average Carried 11 | 5 12 Final Capacity 20 | 8 20 Final Carried 15 | 8 15 Class Distribution -------------------- 56% | Mutant 43% | Scavenger-Mutant Dominant Class ---------------- Scavenger-Mutant | -10/Materials Resources | -11 -10 ----------- Run | Yrd Mat Matter Collected 875 | 332 543 Remotely . | . . Salvage Created 797 | 224 573 Parts 57 | 23 34 Haulers Intercepted . | . . Recyclers Shooed 1 | . 1 Parts Field Recycled . | . . Retrieved Matter . | . . Parts Self-Destructed . | . . Prevented . | . . Parts Restored . | . . Kills | -11 -10 ------- Run | Yrd Mat Combat Hostiles Destroyed 16 | . 16 Guns 16 | . 16 Classes Destroyed 5 | 3 2 Worker 2 | 2 . Tunneler 6 | 6 . Recycler 1 | 1 . Swarmer 3 | . 3 Grunt 13 | . 13 Best Kill Streak 5 | 4 5 Combat Bots Only 5 | . 5 Max Kills in Single Turn 1 | 1 1 Gunslinging . | . . Exploded . | . . Melee . | . . Uniques/NPCs Destroyed . | . . Combat | -11 -10 -------- Run | Yrd Mat Hostile Shots Fired 126 | . 126 Missed 31 | . 31 Hits 95 | . 95 Projectile 95 | . 95 Critical Strikes 4 | . 4 Damage Taken 1224 | . 1224 Core 262 | . 262 Absorbed by Shields . | . . Core Remaining (%) 100 | 100 . Volleys Fired 110 | 32 78 Largest 2 | 2 2 Hottest 85 | 40 85 Shots Fired 211 | 64 147 Gun 211 | 64 147 Cannon . | . . Launcher . | . . Special . | . . Kinetic 177 | 64 113 Thermal 34 | . 34 Explosive . | . . Electromagnetic . | . . Robot Hit Streak 14 | 6 14 Robot Miss Streak 4 | 2 4 Penetration Max . | . . Secondary Targets 1 | . 1 Max Gunslinging Chain 1 | . 1 Shots Hit Robots 155 | 44 111 Core Hits 54 | 17 37 Critical Kills . | . . Critical Parts Destroyed . | . . Critical Strikes . | . . Melee Attacks 17 | . 17 Impact . | . . Slashing 17 | . 17 Piercing . | . . Sneak Attacks 1 | . 1 Combat Hostiles . | . . Follow-up Attacks . | . . Damage Inflicted 1530 | 380 1150 Guns 1415 | 380 1035 Cannons . | . . Explosions . | . . Melee 115 | . 115 Ramming . | . . Kinetic 1054 | 380 674 Thermal 361 | . 361 Explosive . | . . Electromagnetic . | . . Impact . | . . Slashing 115 | . 115 Piercing . | . . Highest Corruption . | . . Average Corruption . | . . Corruption Purged . | . . Corruption Blocked . | . . Overload Shots . | . . Overflow Damage 7 | . 7 Projectiles . | . . Explosions . | . . Melee 7 | . 7 Knockbacks . | . . Impact . | . . Kinetic . | . . Secondary . | . . Self-Inflicted Damage . | . . Shots . | . . Rammed . | . . Targets Rammed . | . . Kicked . | . . Crushed . | . . Highest Temperature 633 | . 633 Average Temperature 148 | . 148 Received Heat Transfer 699 | . 699 Effects 12 | . 12 Shutdowns 3 | . 3 Energy Bleed 4 | . 4 Interference 2 | . 2 Matter Decay 2 | . 2 Damage (core) 1 | . 1 Siege Activations . | . . Martial Activations . | . . Shielding Activations . | . . Robots Disrupted . | . . Combat Hostiles . | . . Robots Corrupted . | . . Combat Hostiles . | . . Parts Fried . | . . Impact Corruptions . | . . Robots Melted . | . . Combat Hostiles . | . . Parts Melted 2 | . 2 Heat Transferred 888 | . 888 Parts Sabotaged . | . . Parts Stolen . | . . Parts Stripped . | . . Power Chain Reactions . | . . Alert | -11 -10 ------- Run | Yrd Mat Maximum Alert Level . | . . Low Security (%) 100 | 100 100 Level 1 . | . . Level 2 . | . . Level 3 . | . . Level 4 . | . . Level 5 . | . . High Security . | . . Max Security . | . . Peak Influence 136 | 10 136 Initial . | . . Average 37 | 1 45 Influence Increases 474 | 45 429 Destroy 0b10 Robot/C 320 | . 320 Destroy 0b10 Robot/NC 45 | 45 . Destroy Leader 60 | . 60 Disable Machine 15 | . 15 Destroy Structure 4 | . 4 Lose Combat Pursuer 30 | . 30 Influence Decreases 372 | 45 327 Time Decay 312 | 45 267 Lost Part 60 | . 60 Squads Dispatched 3 | . 3 Investigation 3 | . 3 Extermination . | . . Reinforcement . | . . Assault . | . . Garrison . | . . Intercept . | . . Searches Triggered . | . . Construction Impeded . | . . Haulers Reinforced . | . . Active Scanning Responses . | . . Cargo Convoy Interrupts . | . . Stealth | -11 -10 --------- Run | Yrd Mat Distress Signals 1 | . 1 Communications Jammed . | . . Distress Signals . | . . Times Spotted 25 | . 25 Peak Tracking Total 3 | . 3 Tactical Retreats 2 | . 2 Traps | -11 -10 ------- Run | Yrd Mat Traps Triggered 2 | . 2 Indirectly . | . . Trap Hack Attempts . | . . Triggered . | . . Disarmed . | . . Reprogrammed . | . . Reused . | . . Traps Extracted . | . . Installed . | . . Triggered . | . . Machines | -11 -10 ---------- Run | Yrd Mat Machines Disabled 1 | . 1 Max in Single Turn 1 | . 1 Machines Repaired . | . . Machines Dismantled . | . . Machines Sabotaged . | . . Overloaded Fab Kills . | . . Hacking | -11 -10 --------- Run | Yrd Mat Machines Accessed 5 | . 5 Terminals 5 | . 5 Fabricators . | . . Repair Stations . | . . Recycling Units . | . . Scanalyzers . | . . Garrison Access . | . . Total Hacks 15 | . 15 Successful 4 | . 4 Failed 11 | . 11 Catastrophic 2 | . 2 Database Lockouts . | . . Manual 13 | . 13 Terminals 15 | . 15 Fabricators . | . . Repair Stations . | . . Recycling Units . | . . Scanalyzers . | . . Garrison Access . | . . Terminal Hacks . | . . Fabricator Hacks . | . . Repair Station Hacks . | . . Recycling Unit Hacks . | . . Scanalyzer . | . . Garrison Access Hacks . | . . Unauthorized Hacks 4 | . 4 Terminals 4 | . 4 Assimilate 3 | . 3 Operators 1 | . 1 Fabricators . | . . Repair Stations . | . . Recycling Units . | . . Scanalyzers . | . . Garrison Access . | . . Data Cores Recovered . | . . Used . | . . Hacking Detections 4 | . 4 Full Trace Events 3 | . 3 Feedback Events . | . . Feedback Blocked . | . . Robot Schematics Acquired . | . . Robots Built . | . . Authchips . | . . Time . | . . Total Robot Build Rating . | . . Part Schematics Acquired . | . . Parts Built . | . . Authchips . | . . Time . | . . Total Part Build Rating . | . . Part Studies Acquired . | . . Parts Repaired . | . . Time . | . . Parts Recycled . | . . Recycled Matter . | . . Retrieved Matter . | . . Retrieved Components . | . . Parts Scanalyzed . | . . Part Schematics Acquired . | . . Parts Damaged . | . . Bothacking | -11 -10 ------------ Run | Yrd Mat Used RIF Installer . | . . Robots Hacked . | . . Non-combat . | . . Combat . | . . Robot Hacks Applied . | . . Relay Couplers Released . | . . Fabnet Peak Effective % . | . . Robots Rewired . | . . Allies Hacked . | . . Hacks Repelled . | . . Allies | -11 -10 -------- Run | Yrd Mat Total Allies . | . . Largest Group . | . . Highest-Rated Group . | . . Highest-Rated Ally . | . . Total Orders . | . . Ally Attacks . | . . Total Damage . | . . Kills . | . . Allies Corrupted . | . . Allies Melted . | . . Intel | -11 -10 ------- Run | Yrd Mat Active Infowar (turns) 1016 | 24 992 Seismic 1016 | 24 992 Robot Analysis Total . | . . Derelict Logs Recovered . | . . Drone Launches . | . . Drone Recoveries . | . . Exploration | -11 -10 ------------- Run | Yrd Mat Turns Passed 2071 | 370 1701 Spaces Moved 948 | 171 777 Core 6 | 6 . Treads 772 | 165 607 Legs 170 | . 170 Wheels . | . . Hover . | . . Flight . | . . Fastest Speed 50 | 50 160 Average Speed 172 | 157 176 Slowest Speed 400 | 160 400 Overloaded Moves . | . . Propulsion Burnouts . | . . Robots Hopped . | . . Potential Cave-ins . | . . Cave-ins Triggered . | . . Exploration Rate (%) 41 | 7 76 Regions Visited 1 Branch Regions . Pre-discovered Areas . | . . Known Exits Taken . | . . Unknown Exits Taken 1 | 1 . Scrap Searched . | . . Spaces Dug 4 | . 4 Terrain Destroyed 4 | . 4 Melee 4 | . 4 Projectile . | . . AOE . | . . Terrain Rammed . | . . Walls Destroyed . | . . Machines Disabled . | . . Actions | -11 -10 --------- Run | Yrd Mat Total 1178 | 217 961 Wait 19 | . 19 Move 947 | 170 777 Hop . | . . Pick Up 32 | 8 24 Fast Attach 11 | 7 4 Attach 6 | . 6 Detach . | . . Swap 13 | . 13 Drop 23 | . 23 Fire 110 | 32 78 Melee 17 | . 17 Ram . | . . Kick . | . . Crush . | . . Escape Stasis . | . . Rewire . | . . Trap . | . . Miscellaneous . | . . Route ------- -11/Scrapyard -10/Materials (discovered 2 exits: [*Mat x2]) History --------- Turn | Location | Event 18 | -11/Scrapyard | Discovered new exit (range 15) 371 | -11/Scrapyard | Entered Materials 372 | -10/Materials | Build established: Mutant 853 | -10/Materials | Discovered new exit (range 14) 1123 | -10/Materials | Build established: Scavenger-Mutant 1497 | -10/Materials | Core integrity fell below 50% 1630 | -10/Materials | Discovered new exit (range 3) 1873 | -10/Materials | Core integrity fell below 20% 1932 | -10/Materials | Lost 3 parts (1p1n1w) 2072 | -10/Materials | Destroyed by G-47 Trooper with Particle Gun Last Messages --------------- 01940_ U-05 Engineer lays Concrete. 01943_ T-07 Excavator is excavating. 01944_ U-05 Engineer lays Concrete. 01947_ T-07 Excavator is excavating. 01947_ U-05 Engineer lays Concrete. 01951_ T-07 Excavator is excavating. 01952_ U-05 Engineer lays Concrete. 01962_ U-05 Engineer builds a Wall. 01967_ U-05 Engineer lays Concrete. 01973_ T-07 Excavator is excavating. 02005_ Connecting with Terminal... >>Trojan(Assimilate) Trojan loaded successfully. Testing... System interface override in place. 02044_ Lgt. Assault Rifle destroyed. 02052_ G-34 Mercenary destroyed. 02058_ R-06 Scavenger collects Ion Engine. 02060_ Critical hit (Burn: +37). 02070_ Imp. Aluminum Leg destroyed. Map ----- +----------------------------------------------------+ | | | | | | | | | | | | | ????????????###########??????????????? | | ????????????# #??????????????? | | ????????????# #??????????????? | | ????????????# #??????????????? | | ????????????# #??????????????? | | ???????###### #??????????????? | | ???????# + ##########?????? | | ??####?# ### # ######? | | ??# #?# #?# # """ # #? | | ??# #?# #?#####+##### """ # #? | | ??# ### ###### + """ # #? | | ??# #### # #? | | ??# #??# """ # #? | | ??# """ """ #??# """ # #? | | ??# """"""""" #??# """ # #? | | ??# """"" #??# # #? | | ??# #??######+### [ ## | | ??# % ####### ###/### | | ??# #######g## | | ??# #?# =[@# ###### | | ??# #?# # #????# ! | | ??# #?# # #????# ####### | | ??# #?# ##### #????## ##?????# | | ??## #?# "T" #????/#?????# #??????? | | ??? ?# """ #???? ?????# #??????? | | ??? ?########???? ? ??? + #?????## | | ???###???????????????? ? # ????? | | ???????????????????????#### ?????? | | ??????????????????????????# ??????? | | ??????????????????????????# """?????? | | ??????????????????????????# """?????? | | ?????????????????????????? """??"?"? | | ??????????????????????????# ???? | | ??????????????????????????# ???? | | ??????????????????????????? ???? | | ??????????????????????????? ??????"" | | ?????????????????????????????????????? | | ????????????????????????????????????" | | ????????????????o??????????????????"" | | ????????????????????????????????? | | ????????????????????????????????? | | ????????????????????????????????? | | ??????????????????????? ??????????? | | ??????????????????????? ???????? | +----------------------------------------------------+ Best States ------------- Heat Dissipation 25 Energy Generation 14 Energy Capacity 250 Matter Stores 300 Matter Capacity 300 Sight Range 16 Terrain Scan Density 10 Evasion (%) 40 Recoil Reduction 2 Item Schematics ----------------- None Robot Schematics ------------------ None Fabricated ------------ Nothing Repaired ---------- Nothing Studied --------- None Alien Tech Used ----------------- None Achievements -------------- None Challenges ------------ None Game ------ Seed UtilityMiniSaw Manual? 0 Play Time 00:22:34 Cumulative 57.3 hours Start 2026.07.31 @ 15:12:56 End 2026.07.31 @ 16:41:28 Sessions 1 Manual Loads 0 Difficulty Rogue Special Mode None Game No. 51 Rogue 51 Adventurer 0 Explorer 0 Win Type - Total 0 Types 0/0/0/0/0/0/0/0/0/0 Lore% 10 Gallery% 28 Achievement% 21 Wizard Run 0 Options --------- Layout 1 ASCII 0 Keyboard 0 Movement Mouse Keybinds 0 Fullscreen 2 Font 24/Smallcaps Map View 50x35 Zoom Use 0% Tactical HUD 1 Map Filters NONE Filters NONE Steam 1 RUN: 721ed2b8-c0dc-4696-b6a5-1ca9c17ae6c4